bitfinex/quotes_BTCUSD_20241023
["timestamp","ask_amount","ask_price","bid_price","bid_amount"]
[1729688728384,0.150665,66372.0,66371.0,0.009]
[1729688728619,0.26230085,66372.0,66371.0,0.014]
[1729688728866,0.51897476,66372.0,66371.0,0.004]
[1729688729105,0.67270238,66372.0,66371.0,0.004]
[1729688729341,0.58250481,66372.0,66371.0,0.004]
[1729688730026,0.58250481,66372.0,66371.0,0.006]
[1729688730238,0.41602847,66372.0,66371.0,0.004]
[1729688731795,0.30439262,66372.0,66371.0,0.006]
[1729688732006,0.41876651,66372.0,66371.0,0.006]
[1729688732216,0.48638942,66372.0,66371.0,0.006]
[1729688733751,0.48638942,66372.0,66371.0,0.004]
[1729688734437,0.48638942,66372.0,66371.0,0.006]
[1729688735929,0.48638942,66372.0,66371.0,0.004]
[1729688736330,0.675365,66372.0,66371.0,0.004]
[1729688736544,0.58519918,66372.0,66371.0,0.004]
[1729688736751,0.41876651,66372.0,66371.0,0.004]
[1729688736988,0.48639596,66372.0,66371.0,0.004]
[1729688737471,0.41876651,66372.0,66371.0,0.004]
[1729688738375,0.41876651,66372.0,66371.0,0.005646]
[1729688739015,0.48639596,66372.0,66371.0,0.005646]
[1729688739438,0.48639596,66372.0,66371.0,0.007646]
[1729688739439,0.58518717,66372.0,66371.0,0.007646]
[1729688739717,0.48639494,66372.0,66371.0,0.007646]
[1729688740145,0.48639494,66372.0,66371.0,0.005646]
[1729688740575,0.58515616,66372.0,66371.0,0.007646]
[1729688740806,0.41876651,66372.0,66371.0,0.007646]
[1729688741029,0.48638075,66372.0,66371.0,0.007646]
[1729688741241,0.41876651,66372.0,66371.0,0.007646]
[1729688742123,0.48637759,66372.0,66371.0,0.007646]
[1729688742576,0.41876651,66372.0,66371.0,0.007646]
[1729688742767,0.30713066,66372.0,66371.0,0.007646]
[1729688742977,0.486379,66372.0,66371.0,0.007646]
[1729688743201,0.41876651,66372.0,66371.0,0.007646]
[1729688743427,0.48637728,66372.0,66371.0,0.007646]
[1729688743635,0.41876651,66372.0,66371.0,0.007646]
[1729688743870,0.00596185,66372.0,66371.0,0.012646]
[1729688744082,0.05103661,66372.0,66371.0,0.017646]
[1729688744750,0.05103661,66372.0,66371.0,0.06606416]
[1729688744965,0.00596185,66372.0,66371.0,0.06606416]
[1729688745187,0.00596185,66372.0,66371.0,0.017646]
[1729688745404,0.05105042,66372.0,66371.0,0.017646]
[1729688745860,0.05105039,66372.0,66371.0,0.017646]
[1729688747056,0.00596185,66372.0,66371.0,0.017646]
[1729688747903,0.15662685,66372.0,66371.0,0.017646]
[1729688752930,0.20174949,66372.0,66371.0,0.017646]
[1729688753163,0.15662685,66372.0,66371.0,0.017646]
[1729688753672,0.2682627,66372.0,66371.0,0.017646]
[1729688755584,0.15662685,66372.0,66371.0,0.017646]
[1729688757783,0.20176701,66372.0,66371.0,0.017646]
[1729688758038,0.31340286,66372.0,66371.0,0.017646]
[1729688758273,0.33597295,66372.0,66371.0,0.017646]
[1729688758525,0.2682627,66372.0,66371.0,0.017646]
[1729688759243,0.5252456,66372.0,66371.0,0.017646]
[1729688759687,0.2682627,66372.0,66371.0,0.017646]
[1729688760368,0.43498163,66372.0,66371.0,0.017646]
[1729688760623,0.52526196,66372.0,66371.0,0.017646]
[1729688760863,0.52526196,66372.0,66371.0,0.015646]
[1729688761593,0.52526196,66372.0,66371.0,0.017646]
[1729688761845,0.43498163,66372.0,66371.0,0.017646]
[1729688762387,0.52530903,66372.0,66371.0,0.017646]
[1729688763354,0.43498163,66372.0,66371.0,0.017646]
[1729688763601,0.54783205,66372.0,66371.0,0.017646]
[1729688764599,0.54788444,66372.0,66371.0,0.017646]
[1729688766162,0.54788444,66372.0,66371.0,0.015646]
[1729688767882,0.54788444,66372.0,66371.0,0.017646]
[1729688768505,0.54788444,66372.0,66371.0,0.015646]
[1729688768932,0.43497724,66372.0,66371.0,0.015646]
[1729688769347,0.48202466,66372.0,66371.0,0.015646]
[1729688769800,0.63252847,66372.0,66371.0,0.010646]
[1729688770053,0.63252847,66372.0,66371.0,0.005646]
[1729688771785,0.63252847,66372.0,66371.0,0.007646]
[1729688773489,0.63252847,66372.0,66371.0,0.017646]
[1729688773693,0.63251033,66372.0,66371.0,0.017646]
[1729688773905,0.6325115,66372.0,66371.0,0.017646]
[1729688774971,0.6325115,66372.0,66371.0,0.015646]
[1729688775403,0.6325115,66372.0,66371.0,0.017646]
[1729688778317,0.6325115,66372.0,66371.0,0.015646]
[1729688778550,0.6325115,66372.0,66371.0,0.017646]
[1729688780256,0.6325115,66372.0,66371.0,0.015646]
[1729688780749,0.6325115,66372.0,66371.0,0.017646]
[1729688781374,0.48200769,66372.0,66371.0,0.017646]
[1729688783054,0.48200769,66372.0,66371.0,0.015646]
[1729688783509,0.48198311,66372.0,66371.0,0.017646]
[1729688785408,0.48198311,66372.0,66371.0,0.015646]
[1729688785614,0.48198311,66372.0,66371.0,0.017646]
[1729688789035,0.48198311,66372.0,66371.0,0.015646]
[1729688790267,0.48198311,66372.0,66371.0,0.017646]
[1729688790928,0.37034726,66372.0,66371.0,0.017646]
[1729688791138,0.48198311,66372.0,66371.0,0.017646]
[1729688792228,0.54782304,66372.0,66371.0,0.017646]
[1729688792484,0.43493569,66372.0,66371.0,0.017646]
[1729688794229,0.48199814,66372.0,66371.0,0.015646]
[1729688794442,0.52524853,66372.0,66371.0,0.015646]
[1729688794654,0.48199956,66372.0,66371.0,0.015646]
[1729688794884,0.48200012,66372.0,66371.0,0.015646]
[1729688795097,0.43493569,66372.0,66371.0,0.015646]
[1729688795305,0.59488807,66372.0,66371.0,0.015646]
[1729688795516,0.48200072,66372.0,66371.0,0.015646]
[1729688795726,0.48200072,66372.0,66371.0,0.017646]
[1729688795944,0.59488807,66372.0,66371.0,0.017646]
[1729688796641,0.59488807,66372.0,66371.0,0.015646]
[1729688797318,0.59488807,66372.0,66371.0,0.017646]
[1729688799166,0.48200072,66372.0,66371.0,0.017646]
[1729688804893,0.37036487,66372.0,66371.0,0.017646]
[1729688805537,0.32329984,66372.0,66371.0,0.017646]
[1729688805787,0.43628405,66372.0,66371.0,0.017646]
[1729688805994,0.32329984,66372.0,66371.0,0.017646]
[1729688806204,0.3703813,66372.0,66371.0,0.017646]
[1729688807373,0.37051058,66372.0,66371.0,0.017646]
[1729688808050,0.37051058,66372.0,66371.0,0.015646]
[1729688808250,0.37051058,66372.0,66371.0,0.017646]
[1729688808518,0.48214643,66372.0,66371.0,0.017646]
[1729688810313,0.48214643,66372.0,66371.0,0.015646]
[1729688810549,0.48214643,66372.0,66371.0,0.017646]
[1729688812561,0.43506497,66372.0,66371.0,0.017646]
[1729688812784,0.43644222,66372.0,66371.0,0.017646]
[1729688813001,0.32342912,66372.0,66371.0,0.017646]
[1729688813453,0.43644222,66372.0,66371.0,0.017646]
[1729688813677,0.26317353,66372.0,66371.0,0.200846]
[1729688813891,0.00594371,66372.0,66371.0,0.351514]
[1729688814113,0.00594371,66372.0,66371.0,0.46054835]
[1729688814114,0.07375335,66372.0,66371.0,0.46054835]
[1729688814580,0.00594371,66372.0,66371.0,0.47054835]
[1729688814818,0.00594371,66372.0,66371.0,0.62105216]
[1729688815063,0.00066216,66374.0,66373.0,0.355763]
[1729688815299,0.00066216,66374.0,66373.0,0.50626681]
[1729688816049,0.00066216,66374.0,66373.0,0.50426681]
[1729688816257,0.00066216,66374.0,66373.0,0.50626681]
[1729688816663,0.00660591,66374.0,66373.0,0.50626681]
[1729688816868,0.00066216,66374.0,66373.0,0.50626681]
[1729688817070,0.00066216,66374.0,66373.0,0.50426681]
[1729688817292,0.00660591,66374.0,66373.0,0.50426681]
[1729688818429,0.00660591,66374.0,66373.0,0.50626681]
[1729688818672,0.00660591,66374.0,66373.0,0.50426681]
[1729688818878,0.00660591,66374.0,66373.0,0.50626681]
[1729688819317,0.00066216,66374.0,66373.0,0.65877062]
[1729688821304,0.00066216,66374.0,66373.0,0.68177062]
[1729688821783,0.00066216,66374.0,66373.0,0.89340647]
[1729688822007,0.000824,66380.0,66379.0,0.033]
[1729688822232,0.000824,66380.0,66379.0,0.63998966]
[1729688822458,0.000824,66380.0,66379.0,0.79449347]
[1729688822681,0.001,66400.0,66399.0,0.021]
[1729688822903,0.00696455,66400.0,66399.0,0.261904]
[1729688823119,0.00696455,66400.0,66399.0,0.17877589]
[1729688823333,0.00696455,66400.0,66399.0,0.1113]
[1729688826465,0.00696455,66400.0,66399.0,0.261904]
[1729688826691,0.00696455,66400.0,66399.0,0.1113]
[1729688826941,0.00702385,66400.0,66399.0,0.1113]
[1729688827649,0.00702385,66400.0,66399.0,0.261904]
[1729688827886,0.00702385,66400.0,66399.0,0.1979342]
[1729688828132,0.00702385,66400.0,66399.0,0.3485382]
[1729688828366,0.001,66400.0,66399.0,0.3485382]
[1729688830248,0.001,66400.0,66399.0,0.59954201]
[1729688831121,0.001,66400.0,66399.0,0.59754201]
[1729688831449,0.001,66400.0,66399.0,0.59554201]
[1729688831964,0.001,66400.0,66399.0,0.59754201]
[1729688832186,0.001,66400.0,66399.0,0.59954201]
[1729688832857,0.001823,66400.0,66399.0,0.59954201]
[1729688833068,0.001823,66400.0,66399.0,0.59554201]
[1729688833515,0.001823,66400.0,66399.0,0.59754201]
[1729688833965,0.001823,66400.0,66399.0,0.59954201]
[1729688834423,0.32596317,66407.0,66406.0,0.359688]
[1729688834638,0.32596317,66407.0,66406.0,0.51019181]
[1729688834852,0.33201228,66407.0,66406.0,0.51019181]
[1729688835071,0.1,66407.0,66406.0,0.51019181]
[1729688835338,0.10604911,66407.0,66406.0,0.51019181]
[1729688835561,0.10604911,66407.0,66406.0,0.66069562]
[1729688835562,0.1,66407.0,66406.0,0.66069562]
[1729688835772,0.1,66407.0,66406.0,0.66269562]
[1729688837110,0.1,66407.0,66406.0,0.66069562]
[1729688837557,0.1,66407.0,66406.0,0.66269562]
[1729688839117,0.1,66407.0,66406.0,0.68569562]
[1729688840177,0.1,66407.0,66406.0,0.81569562]
[1729688840847,0.1,66407.0,66406.0,0.85636103]
[1729688841052,0.1,66407.0,66406.0,0.81569562]
[1729688842245,0.000823,66417.0,66406.0,0.81569562]
[1729688842246,0.000823,66417.0,66416.0,0.183566]
[1729688842465,0.000823,66417.0,66416.0,0.64880566]
[1729688844226,0.000823,66417.0,66416.0,0.76044151]
[1729688844468,0.000823,66417.0,66416.0,0.87755516]
[1729688844685,1e-08,66419.0,66418.0,0.363661]
[1729688844890,1e-08,66419.0,66418.0,0.51416481]
[1729688845101,1e-08,66419.0,66418.0,0.53716481]
[1729688845326,1e-08,66419.0,66418.0,0.6082826]
[1729688846208,1e-08,66419.0,66418.0,0.61416636]
[1729688847512,1e-08,66419.0,66418.0,0.71416636]
[1729688847938,1e-08,66419.0,66418.0,0.71216636]
[1729688848177,1e-08,66419.0,66418.0,0.71416636]
[1729688848425,1e-08,66419.0,66418.0,0.68916636]
[1729688848632,1e-08,66419.0,66418.0,0.10800155]
[1729688848849,1e-08,66419.0,66418.0,0.25850536]
[1729688849063,0.00611531,66419.0,66418.0,0.4031826]
[1729688849278,1e-08,66419.0,66418.0,0.4031826]
[1729688850233,1e-08,66419.0,66418.0,0.10211779]
[1729688850700,0.0061084,66419.0,66418.0,0.10211779]
[1729688850909,0.0061084,66419.0,66418.0,0.25267879]
[1729688852286,0.0061084,66419.0,66418.0,0.4031826]
[1729688852497,0.0061084,66419.0,66418.0,0.4823826]
[1729688852718,1e-08,66419.0,66418.0,0.4823826]
[1729688853390,1e-08,66419.0,66418.0,0.4803826]
[1729688853827,1e-08,66419.0,66418.0,0.4031826]
[1729688855153,1e-08,66419.0,66418.0,0.4051826]
[1729688857194,1e-08,66419.0,66418.0,0.4068286]
[1729688858558,1e-08,66419.0,66418.0,0.5237286]
[1729688861236,1e-08,66419.0,66418.0,0.5217286]
[1729688861671,1e-08,66419.0,66418.0,0.5237286]
[1729688861885,1e-08,66419.0,66418.0,0.5217286]
[1729688864312,1e-08,66419.0,66418.0,0.5237286]
[1729688866510,0.00152475,66423.0,66422.0,0.29118785]
[1729688866715,0.00152475,66423.0,66422.0,0.59419547]
[1729688867082,0.00152475,66423.0,66422.0,0.67069547]
[1729688867296,0.00152475,66423.0,66422.0,0.67269547]
[1729688868565,0.00152475,66423.0,66422.0,0.79419547]
[1729688868789,0.00152475,66423.0,66422.0,0.89419547]
[1729688870269,0.00152475,66423.0,66422.0,0.78255962]
[1729688870487,0.00152475,66423.0,66422.0,0.89419547]
[1729688872437,0.00152475,66423.0,66422.0,1.00583132]
[1729688872665,0.001706,66436.0,66435.0,0.181523]
[1729688872872,0.22596317,66439.0,66438.0,0.033]
[1729688873073,0.22596317,66439.0,66438.0,0.44565566]
[1729688873280,0.001706,66440.0,66439.0,0.183514]
[1729688873486,0.001706,66440.0,66439.0,0.33401781]
[1729688873702,0.001706,66440.0,66439.0,0.45113146]
[1729688874791,0.001706,66440.0,66439.0,0.44913146]
[1729688875469,0.11334185,66440.0,66439.0,0.016]
[1729688876087,0.001706,66440.0,66439.0,0.016]
[1729688876296,0.11334185,66440.0,66439.0,0.016]
[1729688877109,0.001706,66440.0,66439.0,0.016]
[1729688877315,0.001706,66440.0,66439.0,0.0943602]
[1729688878414,0.001706,66440.0,66439.0,0.2448742]
[1729688882232,0.001706,66440.0,66439.0,0.0943602]
[1729688882636,0.001706,66440.0,66439.0,0.016]
[1729688883477,0.001706,66440.0,66439.0,0.166514]
[1729688886511,0.00786897,66440.0,66439.0,0.166514]
[1729688886740,0.001706,66440.0,66439.0,0.166514]
[1729688887426,0.00786897,66440.0,66439.0,0.166514]
[1729688887632,0.00786897,66440.0,66439.0,0.2749775]
[1729688888699,0.001706,66440.0,66439.0,0.43048131]
[1729688889814,0.001706,66440.0,66439.0,0.43248131]
[1729688890023,0.001706,66440.0,66439.0,0.44248131]
[1729688892280,0.001706,66440.0,66439.0,0.54078131]
[1729688893597,0.001706,66440.0,66439.0,0.54692602]
[1729688894230,0.001706,66440.0,66439.0,0.54492602]
[1729688894432,0.001706,66440.0,66439.0,0.54692602]
[1729688896378,0.001706,66440.0,66439.0,0.56992602]
[1729688896596,0.001706,66440.0,66439.0,0.64812602]
[1729688897069,0.001706,66440.0,66439.0,0.64612602]
[1729688900488,0.001706,66440.0,66439.0,0.75749049]
[1729688902667,0.001706,66440.0,66439.0,0.44662602]
[1729688910171,0.001706,66441.0,66440.0,0.181511]
[1729688910385,0.001706,66441.0,66440.0,0.41178275]
[1729688910802,0.001706,66441.0,66440.0,0.39278275]
[1729688911012,0.001706,66441.0,66440.0,0.39099946]
[1729688913484,0.001706,66441.0,66440.0,0.37199946]
[1729688913693,0.001706,66441.0,66440.0,0.39099946]
[1729688916547,0.001706,66441.0,66440.0,0.39264546]
[1729688919483,0.001706,66441.0,66440.0,0.31287752]
[1729688923599,0.001706,66441.0,66440.0,0.30287752]
[1729688923830,0.001706,66441.0,66440.0,0.31287752]
[1729688925173,0.22596317,66448.0,66447.0,0.159495]
[1729688925598,0.00616502,66448.0,66447.0,0.159495]
[1729688925870,0.00616502,66448.0,66447.0,0.2657457]
[1729688926083,0.0802,66451.0,66450.0,0.009]
[1729688926943,0.0802,66451.0,66450.0,0.159489]
[1729688927566,0.0802,66451.0,66450.0,0.009]
[1729688927980,0.0802,66451.0,66450.0,0.159489]
[1729688929466,0.08636329,66451.0,66450.0,0.159489]
[1729688930113,0.08636329,66451.0,66450.0,0.009]
[1729688930741,0.08636329,66451.0,66450.0,0.159489]
[1729688934648,0.08636329,66451.0,66450.0,0.2356358]
[1729688935047,0.08636329,66451.0,66450.0,0.159489]
[1729688940334,0.48956822,66451.0,66450.0,0.009]
[1729688940758,0.44441376,66451.0,66450.0,0.009]
[1729688940980,0.48956822,66451.0,66450.0,0.009]
[1729688941232,0.44441376,66451.0,66450.0,0.009]
[1729688941657,0.4895676,66451.0,66450.0,0.009]
[1729688941874,0.44523676,66451.0,66450.0,0.009]
[1729688943562,0.51296127,66451.0,66450.0,0.009]
[1729688947841,0.5129517,66451.0,66450.0,0.009]
[1729688953198,0.8139257,66451.0,66450.0,0.009]
[1729688954472,0.74621076,66451.0,66450.0,0.009]
[1729688956791,0.44523676,66451.0,66450.0,0.009]
[1729688957916,0.29475076,66451.0,66443.0,0.301006]
[1729688958150,0.29475076,66451.0,66441.0,0.101246]
[1729688958151,0.44523676,66451.0,66450.0,0.009]
[1729688960034,0.49037231,66451.0,66450.0,0.009]
[1729688960488,0.49037544,66451.0,66450.0,0.009]
[1729688961946,0.33988944,66451.0,66450.0,0.009]
[1729688968664,0.49037544,66451.0,66450.0,0.009]
[1729688969066,0.33988944,66451.0,66450.0,0.009]
[1729688969278,0.49037544,66451.0,66450.0,0.009]
[1729688969688,0.33988944,66451.0,66450.0,0.009]
[1729688970766,0.49037544,66451.0,66450.0,0.009]
[1729688970941,0.33988944,66451.0,66450.0,0.009]
[1729688972889,0.49037544,66451.0,66450.0,0.009]
[1729688973519,0.44523676,66451.0,66450.0,0.009]
[1729688973710,0.29475076,66451.0,66450.0,0.009]
[1729688974633,0.33990361,66451.0,66450.0,0.009]
[1729688975156,0.29475076,66451.0,66450.0,0.009]
[1729688977132,0.11835076,66451.0,66450.0,0.009]
[1729688980046,0.00698629,66451.0,66450.0,0.009]
[1729688981075,0.26883676,66451.0,66450.0,0.009]
[1729688981476,0.26883676,66451.0,66445.0,0.009]
[1729688981477,0.150498,66446.0,66445.0,0.009]
[1729688983558,0.29166447,66447.0,66445.0,0.009]
[1729688983964,0.150498,66446.0,66445.0,0.009]
[1729688985141,0.150498,66446.0,66445.0,0.00875408]
[1729688985541,0.44216147,66447.0,66446.0,0.00875408]
[1729688986379,0.34416147,66447.0,66446.0,0.00875408]
[1729688987777,0.26186147,66447.0,66446.0,0.00875408]
[1729688989379,0.26186147,66447.0,66445.0,0.00875408]
[1729688989628,0.26186147,66447.0,66446.0,0.00875408]
[1729688990046,0.150497,66447.0,66446.0,0.00875408]
[1729688991516,0.0451601,66448.0,66446.0,0.02484469]
[1729688991735,0.1956551,66448.0,66447.0,0.01346031]
[1729688995971,0.4966401,66448.0,66447.0,0.00875408]
[1729688996403,0.150493,66448.0,66447.0,0.00875408]
[1729688997509,0.0451601,66449.0,66442.0,0.233607]
[1729688997510,0.150496,66447.0,66446.0,0.00875408]
[1729688999716,0.150493,66448.0,66447.0,0.004]
[1729689000166,0.150493,66448.0,66447.0,0.00875408]
[1729689000378,0.150498,66446.0,66445.0,0.01040008]
[1729689000735,0.151316,66448.0,66447.0,0.004]
[1729689001171,0.151316,66448.0,66447.0,0.00875408]
[1729689001773,0.000823,66448.0,66447.0,0.17595408]
[1729689001985,0.000823,66448.0,66447.0,0.00875408]
[1729689002844,0.151316,66448.0,66447.0,0.00875408]
[1729689003212,0.000823,66448.0,66447.0,0.00875408]
[1729689003412,0.000823,66448.0,66447.0,0.15924908]
[1729689003653,0.000823,66448.0,66447.0,0.00875408]
[1729689005706,0.000823,66448.0,66446.0,0.004]
[1729689005928,0.000823,66448.0,66447.0,0.00875408]
[1729689006199,0.000823,66448.0,66447.0,0.32684908]
[1729689008753,0.000823,66448.0,66447.0,0.43821355]
[1729689008966,0.000823,66448.0,66447.0,0.58871736]
[1729689009145,0.000823,66448.0,66447.0,0.47735289]
[1729689009376,0.000823,66448.0,66447.0,0.58545358]
[1729689009785,0.000823,66448.0,66447.0,0.32684908]
[1729689010017,0.000823,66448.0,66447.0,0.15924908]
[1729689010219,0.000823,66448.0,66447.0,0.00875408]
[1729689010415,0.151316,66448.0,66447.0,0.00875408]
[1729689010616,0.000823,66448.0,66447.0,0.00875408]
[1729689011482,0.000823,66448.0,66447.0,0.15924908]
[1729689012754,0.00699468,66448.0,66447.0,0.15924908]
[1729689013169,0.00699468,66448.0,66447.0,0.00875408]
[1729689013594,0.00699468,66448.0,66447.0,0.15924908]
[1729689013804,0.15748768,66448.0,66447.0,0.00875408]
[1729689014033,0.00699468,66448.0,66447.0,0.00875408]
[1729689014829,0.15748768,66448.0,66447.0,0.00875408]
[1729689017530,0.00699468,66448.0,66447.0,0.00875408]
[1729689017777,0.15748768,66448.0,66447.0,0.00875408]
[1729689018757,0.26885215,66448.0,66447.0,0.00875408]
[1729689019346,0.41934715,66448.0,66447.0,0.00875408]
[1729689019533,0.56984015,66448.0,66447.0,0.00875408]
[1729689019933,0.26885215,66448.0,66447.0,0.00875408]
[1729689020209,0.11835915,66448.0,66447.0,0.00875408]
[1729689020436,0.26885215,66448.0,66447.0,0.00875408]
[1729689021204,0.150495,66447.0,66446.0,0.00875408]
[1729689021428,0.41934615,66448.0,66445.0,0.001646]
[1729689021429,0.150498,66446.0,66445.0,0.001646]
[1729689021650,0.150498,66446.0,66445.0,0.01040008]
[1729689021852,0.42337327,66446.0,66445.0,0.001646]
[1729689022021,0.47479731,66446.0,66445.0,0.001646]
[1729689022222,0.43115233,66446.0,66445.0,0.001646]
[1729689022421,0.36343284,66446.0,66445.0,0.001646]
[1729689022650,0.43114894,66446.0,66445.0,0.001646]
[1729689023425,0.43114831,66446.0,66445.0,0.001646]
[1729689024058,0.31978384,66446.0,66445.0,0.001646]
[1729689024267,0.07388584,66446.0,66445.0,0.001646]
[1729689024480,0.22438384,66446.0,66445.0,0.001646]
[1729689024694,0.00617037,66446.0,66445.0,0.001646]
[1729689024906,0.15666837,66446.0,66445.0,0.001646]
[1729689025602,0.00617037,66446.0,66445.0,0.001646]
[1729689025817,0.15532554,66446.0,66445.0,0.001646]
[1729689026041,0.20174017,66446.0,66445.0,0.001646]
[1729689027557,0.2017343,66446.0,66445.0,0.001646]
[1729689028246,0.2017343,66446.0,66445.0,0.01259521]
[1729689028468,0.0512363,66446.0,66445.0,0.01259521]
[1729689028726,0.00611159,66446.0,66445.0,0.16309521]
[1729689029172,0.000823,66448.0,66445.0,0.16309521]
[1729689029647,0.000823,66448.0,66446.0,0.06307089]
[1729689030142,0.000823,66448.0,66445.0,0.001646]
[1729689030866,0.000823,66448.0,66445.0,0.152145]
[1729689031346,0.00610682,66447.0,66445.0,0.001646]
[1729689031827,0.00798381,66447.0,66445.0,0.001646]
[1729689033529,0.15848081,66447.0,66445.0,0.001646]
[1729689034435,0.00798381,66447.0,66445.0,0.001646]
[1729689034654,0.00798381,66447.0,66446.0,0.15925208]
[1729689034873,0.00798381,66447.0,66446.0,0.00875408]
[1729689036232,0.00798381,66447.0,66446.0,0.15925208]
[1729689036451,0.00798381,66447.0,66446.0,0.00875408]
[1729689036869,0.00798381,66447.0,66446.0,0.15925208]
[1729689037102,0.00798381,66447.0,66446.0,0.25988579]
[1729689037554,0.00798381,66447.0,66446.0,0.10938779]
[1729689038228,0.00798381,66447.0,66446.0,0.00875408]
[1729689039556,0.00798381,66447.0,66446.0,0.15925208]
[1729689039981,0.00798381,66447.0,66446.0,0.00875408]
[1729689040470,0.15847881,66447.0,66446.0,0.00875408]
[1729689041547,0.45947081,66447.0,66446.0,0.00875408]
[1729689041747,0.15847881,66447.0,66446.0,0.00875408]
[1729689043890,0.00798381,66447.0,66446.0,0.00875408]
[1729689044552,0.00798381,66447.0,66446.0,0.20560839]
[1729689045018,0.000823,66448.0,66446.0,0.05511039]
[1729689045228,0.000823,66448.0,66447.0,0.15924908]
[1729689045700,0.000823,66448.0,66447.0,0.00875408]
[1729689045908,0.000823,66448.0,66447.0,0.15924908]
[1729689046126,0.000823,66448.0,66447.0,0.25783422]
[1729689047733,0.00880399,66448.0,66447.0,0.25783422]
[1729689049478,0.000823,66448.0,66447.0,0.25783422]
[1729689050751,0.00880399,66448.0,66447.0,0.25783422]
[1729689050958,0.000823,66448.0,66447.0,0.25783422]
[1729689051216,0.00880399,66448.0,66447.0,0.25783422]
[1729689052656,0.00880399,66448.0,66447.0,0.15924908]
[1729689053190,0.000823,66448.0,66447.0,0.15924908]
[1729689053398,0.00880399,66448.0,66447.0,0.15924908]
[1729689053648,0.000823,66448.0,66447.0,0.15924908]
[1729689056026,0.00880399,66448.0,66447.0,0.15924908]
[1729689056266,0.000823,66448.0,66447.0,0.15924908]
[1729689056470,0.00880399,66448.0,66447.0,0.24522859]
[1729689056676,0.000823,66448.0,66447.0,0.24522859]
[1729689056879,0.00880399,66448.0,66447.0,0.24522859]
[1729689057107,0.000823,66448.0,66447.0,0.24522859]
[1729689057309,0.00880399,66448.0,66447.0,0.24522859]
[1729689057517,0.000823,66448.0,66447.0,0.24522859]
[1729689057723,0.00880399,66448.0,66447.0,0.24522859]
[1729689057927,0.000823,66448.0,66447.0,0.24522859]
[1729689058135,0.00880399,66448.0,66447.0,0.24522859]
[1729689058340,0.000823,66448.0,66447.0,0.24522859]
[1729689058545,0.00880399,66448.0,66447.0,0.24522859]
[1729689058724,0.000823,66448.0,66447.0,0.24522859]
[1729689058971,0.00880399,66448.0,66447.0,0.24522859]
[1729689060155,0.00880399,66448.0,66447.0,0.3957324]
[1729689060568,0.000823,66448.0,66447.0,0.3957324]
[1729689062828,0.000823,66448.0,66447.0,0.24522859]
[1729689063493,0.00880584,66448.0,66447.0,0.24522859]
[1729689063691,0.000823,66448.0,66447.0,0.24522859]
[1729689063911,0.00880759,66448.0,66447.0,0.24522859]
[1729689064115,0.000823,66448.0,66447.0,0.09473359]
[1729689064319,0.00880759,66448.0,66447.0,0.00875408]
[1729689064528,0.000823,66448.0,66447.0,0.00875408]
[1729689064720,0.00880759,66448.0,66447.0,0.15924908]
[1729689064939,0.000823,66448.0,66447.0,0.15924908]
[1729689065155,0.00880759,66448.0,66447.0,0.15924908]
[1729689065370,0.000823,66448.0,66447.0,0.15924908]
[1729689065584,0.11218747,66448.0,66447.0,0.00875408]
[1729689065808,0.27066506,66448.0,66447.0,0.00875408]
[1729689066015,0.12017206,66448.0,66447.0,0.00875408]
[1729689066220,0.00880759,66448.0,66447.0,0.00875408]
[1729689067533,0.00880759,66448.0,66447.0,0.15924908]
[1729689068194,0.00880759,66448.0,66447.0,0.00875408]
[1729689068407,0.27066506,66448.0,66447.0,0.00875408]
[1729689071109,0.150495,66447.0,66446.0,0.01040008]
[1729689071537,0.15847959,66447.0,66446.0,0.01040008]
[1729689071737,0.00798459,66447.0,66446.0,0.01040008]
[1729689071939,0.00798459,66447.0,66446.0,0.16089808]
[1729689072209,0.00798459,66447.0,66446.0,0.01040008]
[1729689072346,0.15847959,66447.0,66446.0,0.01040008]
[1729689073123,0.00798459,66447.0,66446.0,0.01040008]
[1729689073335,0.00798459,66447.0,66446.0,0.16089808]
[1729689073740,0.00798459,66447.0,66446.0,0.01040008]
[1729689073961,0.00798459,66447.0,66446.0,0.001646]
[1729689075270,0.00798459,66447.0,66446.0,0.16089808]
[1729689075680,0.00798459,66447.0,66446.0,0.23751849]
[1729689077098,0.00798459,66447.0,66446.0,0.08702049]
[1729689077335,0.00798459,66447.0,66446.0,0.001646]
[1729689077670,0.00798459,66447.0,66446.0,0.01040008]
[1729689078700,0.00798459,66447.0,66446.0,0.16089808]
[1729689081661,0.00880759,66447.0,66446.0,0.16089808]
[1729689082854,0.00880759,66447.0,66446.0,0.01040008]
[1729689083960,0.00880759,66447.0,66446.0,0.16089808]
[1729689085223,0.00526759,66447.0,66446.0,0.23751849]
[1729689085442,0.00880349,66447.0,66446.0,0.23751849]
[1729689086316,0.15929849,66447.0,66446.0,0.001646]
[1729689088306,0.32729849,66447.0,66446.0,0.001646]
[1729689088753,0.39502942,66447.0,66446.0,0.001646]
[1729689090031,0.51139389,66447.0,66446.0,0.001646]
[1729689090246,0.78383649,66447.0,66446.0,0.001646]
[1729689090460,0.83086814,66447.0,66446.0,0.001646]
[1729689090676,1.04323261,66447.0,66446.0,0.001646]
[1729689090896,1.06733001,66447.0,66446.0,0.001646]
[1729689091355,0.93186814,66447.0,66446.0,0.001646]
[1729689097371,1.04451783,66447.0,66446.0,0.001646]
[1729689099578,0.93186814,66447.0,66446.0,0.001646]
[1729689100424,0.88483649,66447.0,66446.0,0.001646]
[1729689101784,0.97491231,66447.0,66446.0,0.001646]
[1729689101999,0.71816677,66447.0,66446.0,0.001646]
[1729689102207,0.7857234,66447.0,66446.0,0.001646]
[1729689102415,0.71816677,66447.0,66446.0,0.001646]
[1729689102814,0.76320117,66447.0,66446.0,0.001646]
[1729689103462,0.76320108,66447.0,66446.0,0.001646]
[1729689103956,0.71816677,66447.0,66446.0,0.001646]
[1729689106189,0.76319935,66447.0,66446.0,0.001646]
[1729689106590,0.49829554,66447.0,66446.0,0.001646]
[1729689106759,0.30933107,66447.0,66446.0,0.001646]
[1729689106964,0.37566296,66447.0,66446.0,0.001646]
[1729689107397,0.37666296,66447.0,66446.0,0.001646]
[1729689109404,0.42170009,66447.0,66446.0,0.001646]
[1729689111412,0.42170186,66447.0,66446.0,0.001646]
[1729689112275,0.37666296,66447.0,66446.0,0.001646]
[1729689112474,0.42170186,66447.0,66446.0,0.001646]